[Event "FIDE CB Open 2022"]
[Site "Ceske Budejovice"]
[Date "2022.07.06"]
[Round "6.12"]
[White "Simecek, Bohumil"]
[Black "Domalchuk-Jonasson, Aleksandr"]
[Result "0-1"]
[ECO "D02"]
[WhiteElo "2059"]
[BlackElo "2244"]
[Annotator "TA"]
[PlyCount "56"]
[EventDate "2022.07.01"]
[EventType "swiss"]
[EventCountry "CZE"]
[SourceTitle "playchess.com"]
[Source "ChessBase"]
[SourceQuality "1"]
[TimeControl "40/5400+30:1800+30"]

{[%evp 14,56,-20,-35,-20,-20,0,0,0,0,0,-19,24,-7,-13,-101,-22,-36,-16,-16,-8,-104,-113,-213,-108,-227,-204,-195,-199,-315,-310,-338,-324,-627,-620,-601,-610,-590,-453,-29987,-29988,-29988,-29989,-29997,-29998]} 1. d4 {[%emt 0:02:31]} d5 {[%emt 0:00:11]} 2. Nf3 {[%emt 0:00:30]} Nf6 {[%emt 0:00:18]} 3. Bf4 {[%emt 0:00:26]} c5 {[%emt 0:00:46]} 4. e3 {[%emt 0:00:49]} Nc6 {[%emt 0:00:28]} 5. c3 {[%emt 0:00:46]} Qb6 {[%emt 0:01:44]} 6. Qb3 {[%emt 0:00:27]} c4 {[%emt 0:00:42]} 7. Qc2 {[%emt 0:00:35] The main line 7.Qc2 scores better than 7.Qxb6.} Bf5 {[%emt 0:00:31]} 8. Qc1 {[%emt 0:00:21]} (8. Qxf5 $2 Qxb2 9. Nbd2 Qxa1+ $19) 8... Nh5 {[%emt 0:02:06] D02: 1 d4 d5 2 Nf3 sidelines, including 2...Nf6 3 g3 and 2...Nf6 3 Bf4.} 9. Bg3 {[%emt 0:04:28]} f6 {[%emt 0:01:24][%cal Oe7e5]} 10. Nbd2 {[%emt 0:02:05][%cal Oe3e4]} e5 {[%emt 0:00:51] The position is equal.} 11. Be2 {[%emt 0:03:26] [#]} O-O-O $146 {[%emt 0:02:07]} ({Predecessor:} 11... e4 12. Ng1 Nxg3 13. hxg3 Bd6 14. Nh3 O-O-O 15. Nf4 Be7 16. g4 Bg6 17. b3 cxb3 18. axb3 {½-½ (90) Lau,L (1991)-Salim,M (1926) Chess.com INT 2021}) 12. Nh4 {[%emt 0:11:20]} Bg6 {[%emt 0:18:19]} 13. Nxg6 {[%emt 0:11:46]} hxg6 {[%emt 0:00:44]} 14. O-O {[%emt 0:10:43]} (14. Bxh5 $11 gxh5 15. h3) 14... Bd6 {[%emt 0:15:13]} ({Black should try} 14... Nxg3 $17 15. hxg3 Rh6) 15. b3 {[%emt 0:19:35]} Nxg3 {[%emt 0:08:53]} 16. hxg3 {[%emt 0:06:10]} cxb3 {[%emt 0:16:06]} ({Much less strong is} 16... exd4 17. cxd4 c3 18. Nb1 $14 (18. Qxc3 Kb8 $11)) 17. axb3 {[%emt 0:02:59]} (17. Nxb3 $11 {keeps the balance.} Rh6 18. Rb1) 17... Kb8 $17 {[%emt 0:04:37] Black is more active.} 18. Qb2 {[%emt 0:04:24]} (18. Qd1 $17) 18... f5 {[%emt 0:02:59]} (18... Rh6 $19 {...g5 is the strong threat.} 19. f4 g5) 19. f4 {[%emt 0:09:49]} (19. Nf3 $17) 19... exd4 $19 {[%emt 0:01:32]} 20. exd4 {[%emt 0:02:54] [#]} g5 $1 {[%emt 0:01:22]} 21. Bd3 {[%emt 0:00:50]} (21. b4 $142) 21... gxf4 {[%emt 0:04:07]} 22. gxf4 {[%emt 0:00:21]} g5 {[%emt 0:00:06][%cal Bg7g5,Bg5g4][%mdl 32]} 23. Nf3 $2 {[%emt 0:02:45]} (23. fxg5 Bh2+ 24. Kf2 (24. Kh1 $2 Nxd4 25. cxd4 Be5+ 26. Kg1 Bxd4+ 27. Qxd4 Qxd4+ $19) 24... Ne5 25. Bxf5 Rde8 $17) (23. Bxf5 Bxf4 24. Rae1) 23... Bxf4 {[%emt 0:00:21]} 24. Rae1 {[%emt 0:00:27] Prevents Be3+.} g4 {[%emt 0:03:11]} 25. Nh4 {[%emt 0:00:13]} Bg3 {[%emt 0:04:21] ( -> ...Nxd4)} 26. Ng6 {[%emt 0:00:53] [#]} (26. Nxf5 $19 Bxe1 27. Rxe1) 26... Nxd4 $1 {[%emt 0:01:26][%mdl 512] Black mates.} 27. cxd4 {[%emt 0:00:49]} (27. Rf2 Qxg6) 27... Qxg6 {[%emt 0:00:25]} 28. Re3 {[%emt 0:00:41] [#]} Rh1+ $3 {[%emt 0:00:10][%mdl 512] Weighted Error Value: White=0.75/Black=0.19 (very precise)} 0-1

[Event "FIDE CB Open 2022"]
[Site "Ceske Budejovice"]
[Date "2022.07.06"]
[Round "6.13"]
[White "Walek, Petr"]
[Black "Laith, Kasib"]
[Result "1-0"]
[ECO "B76"]
[WhiteElo "2237"]
[BlackElo "2079"]
[Annotator "TA"]
[PlyCount "79"]
[EventDate "2022.07.01"]
[EventType "swiss"]
[EventCountry "CZE"]
[SourceTitle "playchess.com"]
[Source "ChessBase"]
[SourceQuality "1"]
[TimeControl "40/5400+30:1800+30"]

{[%evp 29,79,50,72,29,27,-74,-54,-219,-15,-20,17,18,36,44,34,0,-16,-165,-134,-324,-283,-329,-319,-325,-322,-387,-235,-214,-166,-171,-63,-68,-59,-133,0,-166,-172,-175,-165,-146,-79,-151,-151,-143,-97,-136,-97,-97,-97,-97,-97,-97]} 1. e4 {[%emt 0:00:05]} c5 {[%emt 0:01:20]} 2. Nf3 {[%emt 0:00:10]} d6 {[%emt 0:00:21]} 3. d4 {[%emt 0:00:08]} Nf6 {[%emt 0:00:29]} 4. Nc3 {[%emt 0:00:00]} cxd4 {[%emt 0:00:29]} 5. Nxd4 {[%emt 0:00:00]} g6 {[%emt 0:00:30]} 6. Be3 {[%emt 0:00:20]} Bg7 {[%emt 0:00:30]} 7. f3 {[%emt 0:00:30]} O-O {[%emt 0:00:30]} 8. Qd2 {[%emt 0:00:30]} Nc6 {[%emt 0:00:10]} 9. O-O-O {[%emt 0:00:24]} d5 {[%emt 0:04:23]} 10. exd5 {[%emt 0:01:54]} Nxd5 {[%emt 0:02:37]} 11. Nxc6 {[%emt 0:00:14]} bxc6 {[%emt 0:00:09]} 12. Bd4 {[%emt 0:00:11]} e5 {[%emt 0:04:24]} 13. Bc5 {[%emt 0:00:08]} Re8 {[%emt 0:07:19]} 14. Ne4 {[%emt 0:04:23]} Be6 {[%emt 0:15:30] 14...Qc7 gains popularity.} 15. h4 {[%emt 0:15:47]} h6 {[%emt 0:08:36]} 16. Ba6 {[%emt 0:30:13] White is more active. B76: Sicilian Dragon: Yugoslav Attack, 9 g4 and 9 0-0-0.} Qc7 {[%emt 0:12:17] [#] Prevents Bb7.} 17. c4 $146 {[%emt 0:10:01]} (17. g4 $11) ({Predecessor:} 17. g4 Red8 18. g5 h5 19. Qe1 Rab8 20. Rd3 Bf8 21. Bxf8 Rxf8 22. Bc4 Rfd8 23. Ra3 Qb6 {0-1 (40) Janssen,H (2040)-De Boer,G Rotterdam 1978}) 17... Red8 $17 {[%emt 0:03:19]} 18. g4 $2 {[%emt 0:10:58]} (18. cxd5 cxd5 19. Qc3 dxe4 20. fxe4 Bxa2 $17) (18. Qc2 $15) 18... f5 $2 {[%emt 0:04:29]} (18... Nf4 19. Qe3 $15) (18... Nf6 $19 19. Nd6 (19. Nxf6+ $2 Bxf6 20. Qc3 Bg7 $19) 19... e4) 19. gxf5 $11 {[%emt 0:00:48]} gxf5 {[%emt 0:03:40]} (19... Bxf5 $5 {[%cal Rd5f4]} 20. cxd5 cxd5 $11) 20. Nd6 {[%emt 0:01:03] And now Nb7 would win.} (20. cxd5 cxd5 21. Qc2 dxe4 22. fxe4 f4 $15) 20... Rxd6 {[%emt 0:03:44]} (20... Nf4 {looks sharper.} 21. Be3 Qe7 22. c5 Kh8) 21. Bxd6 {[%emt 0:01:13]} Qxd6 {[%emt 0:00:02]} 22. cxd5 {[%emt 0:00:37]} (22. Rhg1 $14 Kh7 23. Kb1 (23. cxd5 cxd5 24. Be2 Rb8 $11)) 22... cxd5 {[%emt 0:00:12]} 23. Bd3 {[%emt 0:09:56]} (23. Rhg1 $11 {and White stays safe.} Kh7 24. Be2 (24. Qg2 Rg8 $17)) 23... e4 $1 $19 {[%emt 0:05:36][%cal Be5e4,Be4e3][%mdl 1056] Black has strong compensation.} 24. Bc2 $2 {[%emt 0:00:26]} (24. fxe4 $17 {might work better.} dxe4 25. Bc2) 24... Qe5 {[%emt 0:04:42][%csl Gg7][%cal Re5b2]} 25. Bb3 {[%emt 0:02:01][%cal Rb3d5]} e3 {[%emt 0:00:45]} 26. Qe2 {[%emt 0:00:20]} f4 {[%emt 0:02:27]} 27. Rhg1 {[%emt 0:00:55]} Rc8+ {[%emt 0:00:24]} 28. Kb1 {[%emt 0:00:18]} Bf5+ {[%emt 0:00:17]} 29. Ka1 {[%emt 0:00:09]} Kh8 {[%emt 0:02:48]} (29... Rc5 $19 30. h5 Kf7) 30. Rxd5 $15 {[%emt 0:02:36]} Qf6 {[%emt 0:00:46]} 31. h5 {[%emt 0:05:30] [#]} (31. Rgd1 $15) 31... Bh7 {[%emt 0:08:46] A strong pair of Bishops.} (31... Bg4 $1 $17 {[%cal Rg4f3][%mdl 512] Strongly threatening ...Bxf3!} 32. Rgd1 {[#]} (32. fxg4 $2 f3 $19) 32... Bxf3 $1 {[%mdl 512]} 33. Rd8+ Rxd8 34. Rxd8+ Qxd8 35. Qxf3 Qb8) 32. Qg2 {[%emt 0:02:41] [#]} (32. Rd7 $1 $11 {and White is okay.} Rc2 33. Rd8+ Qxd8 34. Bxc2 Bxb2+ 35. Kxb2 Qd4+ 36. Ka3 (36. Kb1 Qb4+ 37. Ka1 Qd4+ 38. Kb1 Qb4+ 39. Kc1 Qa3+ 40. Kd1 Qc3 $11) 36... Qc5+ 37. Kb3 Qd5+ 38. Kc3 Qe5+ 39. Kc4 (39. Kb3 Qd5+ 40. Kb4 Qd6+ 41. Kc3 Qe5+ 42. Kc4 Qe6+ 43. Kd4 Qd6+ 44. Kc3 Qe5+ $11) 39... Qe6+ 40. Kd4 Qf6+ 41. Kc5 Qb6+ 42. Kd5 Qd8+ 43. Kc4 Qc7+ 44. Kb3 Qb6+ 45. Ka4 Qc6+ 46. Kb3 Qd5+ 47. Kc3 Qe5+ 48. Kc4 (48. Kb3 Qd5+ $11) 48... Qe6+ 49. Kd4 Qd6+ 50. Kc3 Qe5+) 32... Bc2 $1 $19 {[%emt 0:00:53][%csl Gg7][%cal Rf6b2][%mdl 512]} 33. Rd8+ {[%emt 0:00:55]} Rxd8 {[%emt 0:00:25][%csl Gg7][%cal Rf6b2]} 34. Qxc2 {[%emt 0:00:03]} Qd4 {[%emt 0:01:04]} ({Black should try} 34... Qe5 {...e2 is the strong threat.} 35. Qc1 a5) 35. Rd1 {[%emt 0:01:26]} ({Better is} 35. a4) 35... Qxd1+ $17 {[%emt 0:00:15]} 36. Qxd1 {[%emt 0:00:48]} Rxd1+ {[%emt 0:00:00]} 37. Bxd1 {[%emt 0:00:30]} Be5 {[%emt 0:00:14]} 38. Kb1 {[%emt 0:00:30] Black is better.} Kg7 {[%emt 0:00:30]} 39. Kc1 {[%emt 0:00:30]} Kf6 {[%emt 0:00:30][%cal Oe5b2]} 40. Ba4 {[%emt 0:00:30][%mdl 32768] Weighted Error Value: White=0.63/Black=0.47. Loss on time!?} 1-0

[Event "FIDE CB Open 2022"]
[Site "Ceske Budejovice"]
[Date "2022.07.06"]
[Round "6.14"]
[White "Matras, Ondrej"]
[Black "Rosol, Alexander"]
[Result "1-0"]
[ECO "A58"]
[WhiteElo "2229"]
[BlackElo "2001"]
[Annotator "TA"]
[PlyCount "87"]
[EventDate "2022.07.01"]
[EventType "swiss"]
[EventCountry "CZE"]
[SourceTitle "playchess.com"]
[Source "ChessBase"]
[SourceQuality "1"]
[TimeControl "40/5400+30:1800+30"]

{[%evp 9,87,30,52,52,56,38,42,47,53,42,40,0,0,0,0,0,0,0,0,-21,-7,-26,-20,-66,-50,-81,0,-23,-53,-45,-39,-92,-44,-69,-69,-75,-35,-99,-5,-52,-17,-52,-55,-69,0,-115,0,0,0,-148,-142,-916,0,0,0,-6,-4,-7,0,-25,18,18,19,29,381,381,548,467,551,540,1344,239,181,0,1291,1043,914,914,763,747]} 1. d4 {[%emt 0:00:03]} Nf6 {[%emt 0:00:10]} 2. c4 {[%emt 0:00:01][%cal Bc2c4,Bc4b5,Bb5a6][%mdl 32]} c5 {[%emt 0:00:13]} 3. d5 {[%emt 0:00:08]} b5 {[%emt 0:00:09]} 4. cxb5 {[%emt 0:00:02]} a6 {[%emt 0:00:06]} 5. bxa6 {[%emt 0:00:02]} g6 {[%emt 0:00:11]} 6. Nc3 {[%emt 0:00:02] A58: Benko/Volga Gambit: Lines with 5 bxa6.} Bg7 {[%emt 0:00:33]} 7. Nf3 {[%emt 0:00:16]} O-O {[%emt 0:01:59]} 8. e4 {[%emt 0:02:27] White is slightly better.} Qa5 {[%emt 0:00:57]} 9. Bd2 {[%emt 0:01:29]} Bxa6 {[%emt 0:00:43]} 10. Bxa6 {[%emt 0:00:56]} Qxa6 {[%emt 0:00:20]} 11. Qe2 {[%emt 0:00:46]} e6 {[%emt 0:01:02] 11...d6 gains popularity.} 12. Qxa6 {[%emt 0:01:47]} Nxa6 {[%emt 0:00:12]} 13. dxe6 {[%emt 0:00:23]} fxe6 {[%emt 0:00:17]} 14. Ke2 {[%emt 0:18:33]} d5 {[%emt 0:06:49][%mdl 1024] [#] Black has compensation.} 15. Ng5 $146 {[%emt 0:00:58]} ({Predecessor:} 15. exd5 exd5 16. Rhd1 Nb4 17. a3 Rfe8+ 18. Kf1 Nd3 19. Rab1 d4 20. Ne2 Ng4 21. Be1 Nxe1 22. Rxe1 {1-0 (137) Ju,W (2514)-Cmilyte,V (2514) Beijing 2013}) 15... Nc7 {[%emt 0:21:14]} 16. f3 {[%emt 0:01:40]} (16. e5 $11 {is superior.} Nh5 17. Nf3) 16... d4 $1 $15 {[%emt 0:15:27]} 17. Nd1 {[%emt 0:00:09]} Ra6 {[%emt 0:00:57]} (17... Nd7 $17) 18. Rc1 {[%emt 0:02:17]} Nd7 {[%emt 0:02:40]} 19. a3 {[%emt 0:01:02]} Rb8 {[%emt 0:04:17]} 20. Bf4 {[%emt 0:06:21]} (20. h4 $15) 20... Rb7 {[%emt 0:03:05]} (20... e5 $17 21. Bd2 Rb3) 21. h4 {[%emt 0:04:55]} h6 {[%emt 0:06:47]} 22. Nh3 $1 {[%emt 0:00:12]} Ra4 {[%emt 0:01:38]} 23. Bd6 {[%emt 0:04:18]} (23. Bd2 $15) 23... c4 {[%emt 0:02:40]} (23... Na6 $1 $17 {Threatening ...Rb6.} 24. Nf4 Rb6) 24. Nf4 {[%emt 0:09:39]} (24. Bb4 $11 {feels stronger.}) 24... Kf7 {[%emt 0:06:23]} 25. h5 {[%emt 0:00:58]} g5 {[%emt 0:00:07]} 26. Ng6 {[%emt 0:00:27]} d3+ {[%emt 0:02:55]} (26... Na6 $1 $15 27. b4 Nc7 28. Rxc4 Nb5) 27. Kf1 {[%emt 0:04:32] [#]} (27. Ke3 $11) 27... Bxb2 {[%emt 0:03:42]} (27... Rxb2 $1 $17 28. Nxb2 (28. Bxc7 $2 d2 $19) 28... Bxb2) 28. Nxb2 $11 {[%emt 0:04:26] The board is on fire.} Rxb2 {[%emt 0:04:29]} 29. Ne5+ {[%emt 0:00:24]} (29. Bxc7 $11 {was the only way to keep the balance.} c3 30. Rxc3 Rb1+ 31. Kf2 Rxh1 32. Rxd3) 29... Nxe5 $17 {[%emt 0:09:22]} 30. Bxc7 $2 {[%emt 0:00:02][%mdl 8192] [#]} (30. Bxe5 $17 Rb7 31. Kf2) 30... Rxa3 $2 {[%emt 0:01:30]} 31. Bxe5 $11 {[%emt 0:00:31]} Rb5 {[%emt 0:00:30]} 32. Kf2 {[%emt 0:34:23] aiming for Ra1.} Rxe5 {[%emt 0:00:37]} 33. Rxc4 {[%emt 0:00:02][%mdl 4096] Endgame KRR-KRR} Rb5 {[%emt 0:00:20]} 34. Rd4 {[%emt 0:01:59]} e5 {[%emt 0:00:23]} 35. Rd6 {[%emt 0:00:56] And now Rc1 would win.} Rb2+ {[%emt 0:00:27]} 36. Kg3 {[%emt 0:00:02]} Kg7 $2 {[%emt 0:01:57][%mdl 8192]} ({Much less strong is} 36... Raa2 37. Rg1 $16) (36... g4 $1 $11) 37. Rc1 $18 {[%emt 0:00:54] Rc7+ would kill now.} Rb7 {[%emt 0:00:54] Inhibits Rc7+.} (37... Rc2 $142 38. Rb1 Ra7) 38. Rcc6 {[%emt 0:00:34]} Re7 {[%emt 0:02:03]} 39. Rxh6 {[%emt 0:00:31]} Raa7 {[%emt 0:01:15]} 40. Rhg6+ $2 {[%emt 0:00:50]} (40. Rcg6+ Kf7 41. Rh7+ Kf8 42. Rxe7 Rxe7 43. Rd6) 40... Kh7 {[%emt 0:00:02]} 41. Rh6+ $2 {[%emt 0:30:22]} ({Not} 41. Rxg5 $2 d2 42. Rd6 Rad7 43. Rxd2 (43. Rxd7 $2 Rxd7 44. Kg4 d1=Q $19) 43... Rxd2 $19) (41. Rc1) 41... Kg7 {[%emt 0:30:02]} 42. Rcg6+ {[%emt 0:00:00] White is clearly winning.} Kf7 {[%emt 0:00:00]} 43. Rh7+ {[%emt 0:00:00]} Kf8 {[%emt 0:00:00]} 44. Rxe7 {[%emt 0:00:00] White used his chance.  Weighted Error Value: White=0.65/Black=0.55} 1-0

[Event "FIDE CB Open 2022"]
[Site "Ceske Budejovice"]
[Date "2022.07.06"]
[Round "6.15"]
[White "Placer, Sebastian"]
[Black "Kula, Dominik"]
[Result "0-1"]
[ECO "C95"]
[WhiteElo "2062"]
[BlackElo "2229"]
[Annotator "TA"]
[PlyCount "172"]
[EventDate "2022.07.01"]
[EventType "swiss"]
[EventCountry "CZE"]
[SourceTitle "playchess.com"]
[Source "ChessBase"]
[SourceQuality "1"]
[TimeControl "40/5400+30:1800+30"]

{[%evp 30,172,39,13,23,16,0,0,23,-14,2,-18,-21,-64,-56,-50,-58,-56,-57,-68,-56,-49,-47,-69,-72,-142,-76,-168,-96,-101,-53,-148,-97,-108,-106,-122,-107,-167,-160,-138,-137,-119,-132,-203,-217,-252,-252,-252,-252,-252,-252,-269,-269,-569,-571,-539,-502,-831,-425,-514,-499,-476,-461,-420,-304,-271,-228,-242,-241,-254,-234,-223,-165,-174,-177,-336,-323,-302,-311,-291,-263,-427,-427,-427,-427,-651,-631,-571,-467,-12829,-12830,-12830,-12830,-680,-229,-12828,-2247,-12838,-12839,-12841,-12842,-12844,-12845,-12850,-12845,-12845,-12845,-12850,-12847,-12847,-12847,-12848,-12848,-12850,-12849,-12850,-27999,-27979,-27998,-27981,-27981,-27990,-27990,-27991,-27987,-27990,-27989,-27990,-27989,-27990,-27988,-27989,-27983,-27984,-27976,-27991,-27991,-27998,-27994,-27995,-27995,-27998,-27998,-27999,-27999]} 1. e4 {[%emt 0:00:07]} e5 {[%emt 0:00:17]} 2. Nf3 {[%emt 0:00:07]} Nc6 {[%emt 0:00:04]} 3. Bb5 {[%emt 0:00:10]} a6 {[%emt 0:00:11]} 4. Ba4 {[%emt 0:00:05]} Nf6 {[%emt 0:00:10]} 5. O-O {[%emt 0:00:11]} b5 {[%emt 0:00:16]} 6. Bb3 {[%emt 0:00:04]} Be7 {[%emt 0:00:21]} 7. Re1 {[%emt 0:00:38]} O-O {[%emt 0:00:07]} 8. c3 {[%emt 0:00:30]} d6 {[%emt 0:02:03]} 9. h3 {[%emt 0:00:10]} Nb8 {[%emt 0:01:00]} 10. d4 {[%emt 0:00:12]} Nbd7 {[%emt 0:00:17]} 11. Nbd2 {[%emt 0:00:52]} Bb7 {[%emt 0:00:32]} 12. Bc2 {[%emt 0:00:21]} Re8 {[%emt 0:01:42]} 13. Nf1 {[%emt 0:01:08]} Bf8 {[%emt 0:01:35]} 14. Ng3 {[%emt 0:00:06]} g6 {[%emt 0:05:26]} 15. a4 {[%emt 0:00:33]} Bg7 {[%emt 0:01:22]} 16. d5 {[%emt 0:01:34]} Qb8 {[%emt 0:04:57] C95: Closed Ruy Lopez: Breyer Variation with 10 d4.} 17. axb5 {[%emt 0:17:50]} axb5 {[%emt 0:00:08]} 18. Rxa8 {[%emt 0:00:39]} Qxa8 {[%emt 0:03:48] The position is equal.} 19. b4 {[%emt 0:00:46]} Nb6 {[%emt 0:08:03][%cal Bd7b6,Bb6c4,Bc4e3][%mdl 32] [#]} 20. Be3 $146 {[%emt 0:12:49]} ({Predecessor:} 20. Qd3 c6 21. dxc6 Bxc6 22. Qxd6 Rd8 23. Qc7 Nc4 24. Rd1 Rxd1+ 25. Bxd1 {½-½ (74) Suetin,A-Lipnitsky,I Voroshilovgrad 1955}) 20... Nc4 {[%emt 0:03:55]} 21. Nd2 {[%emt 0:02:39]} Nxe3 {[%emt 0:07:12]} 22. Rxe3 {[%emt 0:01:03]} c6 {[%emt 0:02:23]} 23. dxc6 {[%emt 0:17:19]} Bxc6 {[%emt 0:00:03]} 24. Nb3 {[%emt 0:00:06]} d5 {[%emt 0:07:30][%cal Rd5e4,Bd6d5,Bd5d4][%mdl 32]} 25. Na5 {[%emt 0:13:04]} d4 {[%emt 0:02:35]} 26. Re1 {[%emt 0:02:01]} dxc3 {[%emt 0:05:28]} 27. Qf3 {[%emt 0:00:48]} (27. Re3 $142) 27... Bd7 {[%emt 0:09:18]} (27... Rc8 $142 28. Rc1 Bd7) 28. Re3 {[%emt 0:03:04]} (28. Ra1 $17) 28... Qa7 {[%emt 0:03:58]} (28... Qa6 $19 {Strongly threatening ...Bf8.} 29. Rxc3 Qd6) 29. Ne2 $17 {[%emt 0:08:10]} Qb6 {[%emt 0:03:08]} (29... Qa6 $17 {White must now prevent ...Bf8.} 30. Rxc3 Qd6) 30. Rxc3 {[%emt 0:08:10]} (30. Nb3 $15) 30... Qd6 {[%emt 0:00:40]} (30... Bf8 $142 $1 {[%cal Rf8b4]} 31. Rb3 (31. Nc6 $2 Re6 $19) 31... Rc8) 31. Rb3 {[%emt 0:02:18]} Rc8 {[%emt 0:02:13]} 32. Bd3 {[%emt 0:00:54]} Rc7 {[%emt 0:02:29]} 33. Qe3 {[%emt 0:04:28] [#] Against Bh6} (33. Rb1 $17) 33... Nh5 $1 $19 {[%emt 0:00:46][%cal Bf6h5,Bh5f4,Bf4h3][%mdl 32]} 34. Nc3 {[%emt 0:01:21]} Nf4 {[%emt 0:03:10]} 35. Bf1 {[%emt 0:01:19] [#]} ({Avoid the trap} 35. Nxb5 $2 Bxb5 36. Bxb5 Qd1+ 37. Kh2 Rc1 38. Qxc1 Qxc1 $19) 35... Bh6 $1 {[%emt 0:00:58][%cal Of4h3,Bg7h6,Bh6c1,Bc1d2][%mdl 32] Black is more active.} 36. Qe1 {[%emt 0:00:52]} ({But not} 36. Nxb5 $2 Bxb5 37. Bxb5 Qd1+ 38. Kh2 Rc1 39. Qxc1 Qxc1 $19) (36. h4 $17) 36... Qd4 {[%emt 0:01:59]} 37. Nxb5 {[%emt 0:00:31]} Bxb5 {[%emt 0:00:06]} 38. Bxb5 {[%emt 0:00:02] [#]} Rc1 {[%emt 0:00:27][%mdl 512]} 39. Qxc1 {[%emt 0:00:54] [#]} Nxh3+ $1 {[%emt 0:00:24][%mdl 576] Discovered Attack} 40. Rxh3 {[%emt 0:00:13]} (40. gxh3 Bxc1) 40... Bxc1 {[%emt 0:00:05]} 41. Bc4 $2 {[%emt 0:03:55]} (41. Bf1) 41... Qxe4 {[%emt 0:02:21]} 42. Rb3 {[%emt 0:01:58]} Bd2 {[%emt 0:00:48][%cal Od2b4]} 43. Rf3 {[%emt 0:01:25]} (43. Bd3 $142 Qe1+ 44. Bf1) 43... Bf4 {[%emt 0:02:09]} 44. Rb3 {[%emt 0:00:10]} Kg7 {[%emt 0:01:52]} 45. Bf1 {[%emt 0:03:15]} Qe1 {[%emt 0:02:06]} 46. Nc4 {[%emt 0:01:53]} Qd1 {[%emt 0:02:39]} 47. Rb2 {[%emt 0:02:31]} Bc1 {[%emt 0:01:20]} 48. Re2 {[%emt 0:01:02]} f6 {[%emt 0:04:36]} 49. b5 {[%emt 0:00:18]} Qb3 {[%emt 0:00:49][%csl LRb5,LRc4] Inhibits Ra2.} 50. Re1 {[%emt 0:00:33]} Bf4 {[%emt 0:03:01] And now ...h5 would win.} ({Inferior is} 50... Qxb5 51. Rxc1 Qc5 52. Rd1 $14) 51. b6 {[%emt 0:01:04]} h5 {[%emt 0:00:49][%cal Bh7h5,Bh5h4][%mdl 32] ...h4 is the strong threat.} 52. Ra1 $2 {[%emt 0:02:24]} (52. g3 Bg5 53. Ra1) 52... h4 {[%emt 0:04:01]} 53. Ra7+ {[%emt 0:01:05]} Kh6 {[%emt 0:01:10]} 54. Re7 {[%emt 0:07:37]} f5 {[%emt 0:02:51]} 55. Nxe5 $2 {[%emt 0:06:54]} (55. Ra7) 55... Bxe5 {[%emt 0:01:03]} 56. Rxe5 {[%emt 0:00:05] aiming for Rb5.} Qxb6 {[%emt 0:00:04][%mdl 4096] Endgame KQ-KRB} 57. Re3 {[%emt 0:00:18]} (57. Bd3 $142) 57... Qb1 {[%emt 0:00:32]} 58. Rh3 {[%emt 0:00:31]} Kg5 {[%emt 0:01:08]} 59. g3 {[%emt 0:00:36]} (59. Ra3 $142) 59... hxg3 {[%emt 0:00:04]} 60. Rxg3+ {[%emt 0:00:03]} Kf6 {[%emt 0:00:19]} 61. Kg2 {[%emt 0:00:11]} g5 $2 {[%emt 0:00:23]} (61... Qe4+ 62. Kg1 g5) 62. Rd3 $2 {[%emt 0:00:40]} (62. Be2) 62... Qc2 {[%emt 0:01:06]} (62... g4 $142 63. Rg3 Qe4+ 64. Kg1 Qe1) 63. Re3 {[%emt 0:00:46]} f4 {[%emt 0:00:14]} 64. Re2 {[%emt 0:01:41]} Qc6+ {[%emt 0:00:53]} 65. f3 {[%emt 0:01:09]} g4 {[%emt 0:00:49]} 66. Re4 {[%emt 0:00:42]} Kf5 {[%emt 0:09:08]} 67. Bd3 {[%emt 0:00:36]} Qc3 {[%emt 0:01:21]} 68. fxg4+ {[%emt 0:02:10]} Kg5 {[%emt 0:00:02]} 69. Be2 {[%emt 0:00:27]} Qg3+ {[%emt 0:00:06]} 70. Kf1 {[%emt 0:00:16]} f3 {[%emt 0:00:16]} 71. Re3 {[%emt 0:00:16]} Qg2+ {[%emt 0:00:26]} 72. Ke1 {[%emt 0:00:03]} fxe2 {[%emt 0:02:10]} 73. Rxe2 {[%emt 0:00:05] KQ-KR. Black mates.} Qd5 {[%emt 0:00:50]} 74. Kf2 {[%emt 0:00:40]} Kxg4 {[%emt 0:00:08]} 75. Re3 {[%emt 0:00:31]} Kf4 {[%emt 0:00:40]} 76. Re2 {[%emt 0:00:26]} Qh1 {[%emt 0:00:13]} 77. Re8 {[%emt 0:01:12]} Qh4+ {[%emt 0:01:28]} 78. Kf1 {[%emt 0:00:26]} Qh3+ {[%emt 0:00:36]} 79. Kf2 {[%emt 0:00:07]} Qa3 {[%emt 0:01:05]} 80. Re2 {[%emt 0:00:23]} Qb3 {[%emt 0:01:00]} 81. Ke1 {[%emt 0:00:35]} Qd3 {[%emt 0:01:24]} 82. Kf2 {[%emt 0:00:45]} Qd1 {[%emt 0:01:23]} 83. Re1 {[%emt 0:00:49]} Qd4+ {[%emt 0:00:11]} 84. Ke2 {[%emt 0:00:41]} Ke4 {[%emt 0:00:23]} 85. Kf1+ {[%emt 0:00:51]} Kf3 {[%emt 0:00:11][%csl Gf3][%cal Rd4f2]} 86. Re2 {[%emt 0:00:22]} Qd3 {[%emt 0:00:06] Weighted Error Value: White=0.61/Black=0.22 (precise)} 0-1